bitfinex/quotes_ETHUSD_20251021
["timestamp","ask_amount","ask_price","bid_price","bid_amount"]
[1761022639617,0.7019,3856.9,3856.5,3.5226]
[1761022639924,0.7019,3856.9,3856.5,3.393]
[1761022640220,0.4707,3856.8,3856.5,3.393]
[1761022640812,0.6003,3856.8,3856.5,3.393]
[1761022641207,0.4707,3856.7,3856.5,3.393]
[1761022642506,0.4707,3856.7,3856.1,3.393]
[1761022642731,0.4707,3856.7,3856.0,3.393]
[1761022643790,3.06365387,3856.7,3856.0,3.393]
[1761022644290,18.96921459,3856.1,3855.2,3.393]
[1761022644518,0.4707,3856.0,3855.2,3.99189694]
[1761022645034,0.2312,3855.9,3855.2,3.99189694]
[1761022645214,0.2312,3855.9,3855.2,6.5857843]
[1761022645420,0.2312,3855.9,3855.2,3.99189694]
[1761022645736,0.4707,3856.4,3855.3,2.5938157]
[1761022645907,0.4707,3856.3,3855.4,3.25233405]
[1761022646103,0.4707,3856.3,3855.5,2.5936456]
[1761022646309,0.4707,3856.3,3855.7,2.59355413]
[1761022646507,0.81340275,3857.0,3855.7,3.393]
[1761022646508,0.4707,3856.7,3855.7,3.393]
[1761022646803,0.2322,3856.9,3855.8,0.50688]
[1761022647016,0.001,3856.9,3856.4,2.59302969]
[1761022647218,0.001,3856.9,3856.5,5.98601833]
[1761022647541,0.001,3856.9,3856.5,3.393]
[1761022648312,0.4707,3856.8,3856.5,3.393]
[1761022648527,4.79156903,3856.8,3855.4,0.65857126]
[1761022648734,2.1987,3856.8,3855.5,3.392]
[1761022648897,0.4707,3856.7,3855.5,5.98564558]
[1761022649228,0.4707,3856.7,3855.9,2.59341558]
[1761022649414,0.2322,3856.9,3855.9,3.392]
[1761022649613,0.7029,3856.9,3855.9,3.392]
[1761022649816,0.7029,3856.9,3856.2,2.59321591]
[1761022650130,0.7029,3856.9,3856.1,2.59327442]
[1761022650334,0.7029,3856.9,3856.2,2.59320441]
[1761022650631,0.7029,3856.9,3856.0,2.59336099]
[1761022650813,0.7029,3856.9,3856.3,2.59315774]
[1761022651026,0.7029,3856.9,3856.2,2.59320902]
[1761022651539,0.7029,3856.9,3856.2,0.50688]
[1761022651540,0.2322,3856.9,3856.2,0.50688]
[1761022651839,0.4446,3856.8,3856.1,3.19177268]
[1761022652513,0.4446,3856.8,3856.3,0.1296]
[1761022653224,0.1296,3856.5,3855.9,3.392]
[1761022653639,0.5742,3856.5,3855.9,3.392]
[1761022653823,0.001,3856.9,3855.9,3.392]
[1761022654142,0.4446,3856.8,3855.9,3.392]
[1761022654314,19.41381459,3856.8,3855.9,3.392]
[1761022654512,2.1726,3856.7,3855.9,3.392]
[1761022654933,0.4446,3856.6,3855.9,3.392]
[1761022655726,0.4446,3856.6,3856.0,2.59330263]
[1761022656122,0.2227,3856.9,3856.0,0.85787744]
[1761022656123,0.001,3856.9,3856.0,0.85787744]
[1761022656324,0.001,3856.9,3856.8,2.59282306]
[1761022657117,0.001,3856.9,3856.6,3.392]
[1761022657118,0.001,3856.9,3856.7,2.59288924]
[1761022657543,0.001,3856.9,3856.8,2.61875129]
[1761022658250,0.001,3856.9,3856.8,2.59282306]
[1761022658551,0.001,3856.9,3856.8,2.61875129]
[1761022658749,0.001,3856.9,3856.8,3.47912175]
[1761022660439,0.001,3856.9,3856.8,3.45319352]
[1761022661519,0.001,3856.9,3856.8,3.50159352]
[1761022662153,0.001,3856.9,3856.8,3.45319352]
[1761022663959,0.001,3856.9,3856.8,3.58279352]
[1761022666068,0.001,3856.9,3856.8,0.98997046]
[1761022666233,0.001,3856.9,3856.8,0.1296]
[1761022667270,0.001,3856.9,3856.8,0.02592823]
[1761022667560,0.001,3856.9,3856.8,2.61875129]
[1761022667773,0.001,3856.9,3856.8,2.59282306]
[1761022668149,0.001,3856.9,3856.8,2.61875129]
[1761022668369,0.001,3856.9,3856.8,2.59282306]
[1761022668732,0.001,3856.9,3856.8,2.61875129]
[1761022669042,0.001,3856.9,3856.8,2.59282306]
[1761022670271,0.6673,3856.9,3856.6,6.11450152]
[1761022670673,0.4446,3856.8,3856.6,3.5216]
[1761022671032,0.4446,3856.8,3856.5,0.002]
[1761022671238,0.4446,3856.8,3856.6,3.39]
[1761022671969,0.4446,3856.8,3856.5,0.002]
[1761022672170,0.2227,3856.9,3856.5,3.392]
[1761022672370,0.2227,3856.9,3856.5,5.98497268]
[1761022672574,0.001,3856.9,3856.6,0.02592957]
[1761022672771,0.001,3856.9,3856.7,2.59288599]
[1761022672977,0.001,3856.9,3856.8,3.389]
[1761022674374,0.4456,3856.9,3856.8,3.389]
[1761022674550,0.4456,3856.9,3856.5,3.391]
[1761022675338,0.001,3856.9,3856.5,5.98402457]
[1761022675538,0.001,3856.9,3856.5,3.391]
[1761022675745,0.4446,3856.8,3856.5,3.391]
[1761022676164,0.4446,3856.8,3856.5,5.98402354]
[1761022676473,0.4446,3856.8,3856.5,3.391]
[1761022678486,0.4446,3856.8,3856.5,0.002]
[1761022680449,0.001,3856.9,3856.5,0.002]
[1761022680652,0.4508,3856.9,3856.5,0.002]
[1761022681877,0.1296,3856.6,3856.5,0.002]
[1761022682281,0.5794,3856.6,3856.5,0.002]
[1761022683147,0.001,3856.9,3856.5,0.002]
[1761022683348,0.4498,3856.8,3856.5,0.002]
[1761022686357,0.001,3856.9,3856.5,0.002]
[1761022687086,0.4498,3856.8,3856.5,0.002]
[1761022688096,1.728,3856.7,3856.5,0.002]
[1761022688593,0.4498,3856.6,3856.5,0.002]
[1761022690479,0.40767515,3856.9,3856.5,0.002]
[1761022690892,0.001,3856.9,3856.5,2.59501844]
[1761022691098,0.001,3856.9,3856.6,2.59290921]
[1761022691278,0.001,3856.9,3856.7,2.59285874]
[1761022691804,0.2151,3856.8,3856.6,3.388]
[1761022691996,0.4498,3856.7,3856.6,3.388]
[1761022692492,0.2151,3856.8,3856.6,3.388]
[1761022692720,0.4498,3856.7,3856.5,0.002]
[1761022693197,0.3447,3856.8,3856.5,0.002]
[1761022693507,0.4498,3856.7,3856.5,0.002]
[1761022694075,0.3447,3856.8,3856.5,0.002]
[1761022694275,0.7945,3856.8,3856.5,0.002]
[1761022695406,0.3447,3856.8,3856.5,0.002]
[1761022695588,0.4498,3856.7,3856.5,0.002]
[1761022695783,0.3447,3856.8,3856.5,0.002]
[1761022696091,0.5794,3856.8,3856.5,0.002]
[1761022696880,0.463,3856.7,3856.5,0.002]
[1761022697612,0.1296,3856.8,3856.5,0.002]
[1761022697816,0.5926,3856.8,3856.5,0.002]
[1761022698404,0.463,3856.7,3856.5,0.002]
[1761022699587,17.617404,3856.6,3856.5,0.002]
[1761022699790,19.32400052,3856.6,3856.5,0.002]
[1761022700001,16.495673,3856.6,3856.5,0.002]
[1761022700621,17.49494,3856.6,3856.5,0.002]
[1761022700924,2.191,3856.6,3856.5,0.002]
[1761022701621,2.59771242,3856.6,3856.5,0.002]
[1761022701984,2.13471242,3856.6,3856.5,0.002]
[1761022702785,2.13471242,3856.6,3856.1,0.002]
[1761022702786,23.36419789,3856.5,3856.1,0.002]
[1761022702991,24.9183355,3856.2,3856.1,0.002]
[1761022703294,35.1900115,3856.2,3856.1,0.002]
[1761022703620,32.5994935,3856.2,3856.1,0.002]
[1761022703824,31.9412635,3856.2,3856.1,0.002]
[1761022704034,32.0333035,3856.2,3856.1,0.002]
[1761022704422,22.78810901,3856.2,3856.1,0.002]
[1761022704737,1.728,3856.2,3856.1,0.002]
[1761022705733,2.191,3856.2,3856.1,0.002]
[1761022706041,0.001,3856.9,3856.1,2.8684]
[1761022706205,0.001,3856.9,3856.6,2.5929412]
[1761022706407,0.001,3856.9,3856.6,0.25929412]
[1761022706745,0.001,3856.9,3856.6,2.59293322]
[1761022706903,0.001,3856.9,3856.6,2.59289823]
[1761022707347,0.001,3856.9,3856.8,2.59282306]
[1761022708735,0.001,3856.9,3856.1,2.818]
[1761022709033,0.001,3856.9,3856.6,2.59295434]
[1761022709241,0.001,3856.9,3856.2,0.50688]
[1761022709536,0.001,3856.9,3856.4,2.593092]
[1761022709832,0.001,3856.9,3856.8,2.59282306]
[1761022710709,0.001,3856.9,3856.8,2.64322306]
[1761022711118,0.001,3856.9,3856.8,2.59282306]
[1761022712636,0.001,3856.9,3856.3,0.337528]
[1761022712810,0.1306,3856.9,3856.4,5.9780694]
[1761022713008,0.3653,3856.9,3856.5,2.59501588]
[1761022713237,0.1306,3856.9,3856.5,0.002]
[1761022713627,0.1306,3856.9,3856.5,2.5949612]
[1761022714220,0.1306,3856.9,3856.7,2.59288123]
[1761022714425,0.1306,3856.9,3856.8,0.02592823]
[1761022714651,0.1306,3856.9,3856.5,0.002]
[1761022714960,0.001,3856.9,3856.8,2.59282306]
[1761022715631,0.001,3856.9,3856.7,2.59283872]
[1761022715944,0.001,3856.9,3856.8,2.59282306]
[1761022716514,0.001,3856.9,3856.8,2.79875129]
[1761022717013,0.001,3856.9,3856.8,2.72242306]
[1761022717211,0.001,3856.9,3856.8,3.28802741]
[1761022718142,0.001,3856.9,3856.8,3.31395564]
[1761022718361,0.001,3856.9,3856.8,3.87123564]
[1761022718514,0.001,3856.9,3856.8,7.09870741]
[1761022719887,0.001,3856.9,3856.8,29.42381642]
[1761022720988,0.001,3856.9,3856.8,8.82670741]
[1761022721137,0.001,3856.9,3856.8,3.71570741]
[1761022721344,0.001,3856.9,3856.8,7.09870741]
[1761022721976,0.001,3856.9,3856.8,7.04830741]
[1761022722797,0.001,3856.9,3856.8,7.09870741]
[1761022725180,0.001,3856.9,3856.8,27.69581642]
[1761022725394,0.001,3856.9,3856.8,7.09870741]
[1761022728713,0.001,3856.9,3856.8,7.22830741]
[1761022729414,1e-08,3857.3,3857.2,3.14983418]
[1761022729574,1e-08,3857.3,3857.2,6.68635972]
[1761022729772,1e-08,3857.3,3857.2,6.71083418]
[1761022730075,1e-08,3857.3,3857.2,6.66043418]
[1761022732199,1e-08,3857.3,3857.2,6.61003418]
[1761022732500,1e-08,3857.3,3857.2,7.78950671]
[1761022733370,1e-08,3857.3,3857.2,7.83990671]
[1761022736304,1e-08,3857.3,3857.2,30.13931924]
[1761022736814,1e-08,3857.3,3857.2,30.03541572]
[1761022738311,1e-08,3857.3,3857.2,29.98501572]
[1761022738611,1e-08,3857.3,3857.2,8.87902671]
[1761022738808,1e-08,3857.3,3857.2,9.38590671]
[1761022739015,1e-08,3857.3,3857.2,8.87902671]
[1761022739612,1e-08,3857.3,3857.2,9.38590671]
[1761022740284,1e-08,3857.3,3857.2,7.65790671]
[1761022743216,1e-08,3857.3,3857.2,7.70830671]
[1761022743405,1e-08,3857.3,3857.2,7.65790671]
[1761022744000,1e-08,3857.3,3857.2,9.43630671]
[1761022744409,1e-08,3857.3,3857.2,9.54021185]
[1761022745813,0.001,3858.3,3857.2,9.54021185]
[1761022745814,0.001,3858.3,3858.2,3.09876222]
[1761022746027,0.001,3858.3,3858.2,7.07175382]
[1761022746224,0.001,3858.3,3858.2,7.174635]
[1761022746519,0.001,3858.3,3858.2,7.045835]
[1761022752100,0.4709,3858.3,3858.2,7.045835]
[1761022752299,0.001,3858.3,3858.2,7.045835]
[1761022756410,0.001,3858.3,3858.2,7.174635]
[1761022756817,0.001,3858.3,3858.2,7.225035]
[1761022757020,0.001,3859.1,3859.0,3.0982249]
[1761022757202,0.001,3859.1,3859.0,6.78404739]
[1761022757527,0.001,3859.1,3859.0,6.91284739]
[1761022761640,0.4635,3859.1,3859.0,6.91284739]
[1761022762349,0.4635,3859.1,3859.0,6.0961449]
[1761022763928,0.001,3859.1,3859.0,6.0961449]
[1761022766324,0.4635,3859.1,3859.0,6.0961449]
[1761022766763,0.4635,3859.1,3859.0,3.5048]
[1761022766921,0.4635,3859.1,3859.0,6.0961449]
[1761022768546,0.4635,3859.1,3859.0,6.0931449]
[1761022774785,0.4493,3859.1,3859.0,6.0931449]
[1761022776179,0.4493,3859.1,3858.6,0.002]
[1761022776345,0.4493,3859.1,3859.0,2.5913449]
[1761022776548,0.4493,3859.1,3859.0,5.9633449]
[1761022777275,0.001,3859.1,3859.0,5.9633449]
[1761022778776,0.4493,3859.1,3859.0,5.9633449]
[1761022781843,0.4493,3859.1,3858.6,0.002]
[1761022782175,0.2262,3858.7,3858.6,2.59361353]
[1761022782364,0.2262,3858.7,3858.6,5.96461353]
[1761022782545,0.6745,3858.7,3858.6,5.96461353]
[1761022786263,0.6745,3858.7,3858.6,6.09341353]
[1761022794089,10.03011918,3858.7,3858.6,0.002]
[1761022796796,2.4025,3858.7,3858.6,0.002]
[1761022797691,2.39949543,3858.7,3858.6,0.002]
[1761022799486,2.39949543,3858.7,3858.6,2.59361353]
[1761022799692,2.39949543,3858.7,3858.6,0.002]
[1761022799994,2.39949543,3858.7,3858.6,2.59361353]
[1761022800197,0.22319543,3858.7,3858.6,2.59361353]
[1761022800491,0.1288,3858.8,3858.6,2.59361353]
[1761022800492,0.001,3859.1,3859.0,2.5913449]
[1761022800663,0.001,3859.1,3859.0,5.9603449]
[1761022800867,0.001,3859.1,3859.0,6.0891449]
[1761022801362,0.001,3859.1,3859.0,6.5960249]
[1761022801561,0.001,3859.1,3859.0,8.33627203]
[1761022802291,0.001,3859.1,3859.0,10.19527203]
[1761022802661,0.001,3859.1,3859.0,10.45029045]
[1761022802863,0.001,3859.1,3859.0,5.04009045]
[1761022803097,0.001,3859.1,3859.0,3.0982249]
[1761022803392,0.001,3859.1,3859.0,6.4662249]
[1761022803579,0.001,3859.1,3859.0,14.14724408]
[1761022805383,0.001,3859.1,3859.0,3.0982249]
[1761022805601,0.4376,3859.1,3859.0,5.9593449]
[1761022805818,0.001,3859.1,3858.6,0.85773093]
[1761022805995,0.001,3859.1,3859.0,2.5913449]
[1761022806341,0.001,3859.1,3859.0,5.9583449]
[1761022806490,0.001,3859.1,3859.0,6.5186249]
[1761022806819,0.001,3859.1,3859.0,6.4652249]
[1761022807333,0.001,3859.1,3859.0,6.5186249]
[1761022807617,0.001,3859.1,3859.0,8.19239723]
[1761022808921,0.001,3859.1,3859.0,8.13899723]
[1761022809323,0.001,3859.1,3859.0,8.19239723]
[1761022809822,0.001,3859.1,3859.0,15.76661641]
[1761022810024,0.001,3859.1,3859.0,15.82001641]
[1761022810404,0.001,3859.1,3859.0,17.54801641]
[1761022810701,0.001,3859.1,3859.0,17.65187191]
[1761022811112,0.001,3859.1,3859.0,4.26511723]
[1761022811315,0.001,3859.1,3859.0,6.0107449]
[1761022811498,0.001,3859.1,3859.0,6.5176249]
[1761022811693,0.001,3859.1,3859.0,6.3700439]
[1761022812101,0.001,3859.1,3859.0,6.4988439]
[1761022812393,0.1874,3859.9,3859.8,2.59080781]
[1761022812714,0.1874,3859.9,3859.8,5.95680781]
[1761022813401,0.624,3859.9,3859.8,5.95680781]
[1761022814335,0.4366,3860.4,3860.3,2.59047185]
[1761022814495,1.728,3860.8,3860.3,5.95647018]
[1761022814697,0.4366,3860.9,3860.7,2.5901883]
[1761022814901,0.4366,3860.9,3860.8,2.59013675]
[1761022817398,1.9524,3861.0,3860.9,2.59006967]
[1761022817399,0.2244,3861.0,3860.9,2.59006967]
[1761022817602,0.4312,3861.4,3861.2,2.58981628]
[1761022817825,0.4312,3861.4,3861.3,5.95480136]
[1761022818328,6.81219359,3862.0,3861.3,3.365]
[1761022818514,0.4312,3861.7,3861.6,2.58960016]
[1761022818692,2.1592,3861.7,3861.6,3.365]
[1761022818896,2.1592,3861.7,3861.6,5.95460016]
[1761022819130,0.2262,3862.0,3861.9,2.589399]
[1761022819335,0.2344,3862.3,3862.2,2.58919786]
[1761022819530,0.2344,3862.3,3862.2,3.365]
[1761022819733,1.9624,3862.3,3862.2,5.95419786]
[1761022820025,2.3936,3862.3,3862.2,5.95419786]
[1761022820228,0.6656,3862.3,3862.2,5.95419786]
[1761022820413,0.2344,3862.3,3862.2,5.95419786]
[1761022820616,0.001,3862.6,3862.2,3.365]
[1761022820809,0.4322,3862.6,3862.5,2.58899676]
[1761022821132,0.4322,3862.6,3862.5,5.95299676]
[1761022821343,0.001,3862.6,3862.5,5.95299676]
[1761022822002,2.1602,3862.6,3862.5,3.364]
[1761022822302,2.1602,3862.6,3862.5,5.95299676]
[1761022822525,0.4322,3862.6,3862.5,3.364]
[1761022822723,0.4322,3862.6,3862.5,5.95299676]
[1761022823131,0.4322,3862.6,3862.5,3.364]
[1761022823629,0.4322,3862.6,3862.5,5.95299676]
[1761022825008,0.001,3862.6,3862.5,5.95299676]
[1761022825208,0.001,3862.6,3862.5,6.45987676]
[1761022825412,0.001,3862.6,3862.5,6.58867676]
[1761022828315,0.001,3862.6,3860.0,1.728]
[1761022828629,0.001,3862.6,3862.5,3.09587676]
[1761022828948,0.001,3862.6,3862.5,3.42487676]
[1761022830151,0.001,3862.6,3861.6,2.58960016]
[1761022830443,0.001,3862.6,3862.5,3.09587676]
[1761022830735,0.4475,3862.6,3862.5,5.94999676]
[1761022830938,0.001,3862.6,3862.5,5.94999676]
[1761022831150,0.001,3862.6,3862.5,6.45687676]
[1761022832427,0.001,3862.6,3862.5,6.55727676]
[1761022832740,0.001,3862.6,3862.5,7.47191265]
[1761022834145,0.001,3862.6,3862.5,4.11091265]
[1761022834345,0.001,3862.6,3862.5,7.37151265]
[1761022834722,0.001,3862.6,3862.5,7.47191265]
[1761022835142,0.001,3862.6,3862.5,4.11091265]
[1761022835326,0.001,3862.6,3862.5,9.24680261]
[1761022835527,0.001,3862.6,3862.5,9.22091265]
[1761022835721,0.001,3862.6,3862.5,11.20871265]
[1761022836612,0.001,3863.7,3863.6,3.09513965]
[1761022836945,0.001,3863.7,3863.6,6.45513965]
[1761022838441,0.4475,3863.7,3863.6,6.58293965]
[1761022838944,0.001,3863.7,3863.6,6.58293965]
[1761022840078,0.001,3863.7,3863.6,6.45413965]
[1761022840440,0.001,3863.7,3863.6,3.09513965]
[1761022840644,0.001,3863.7,3863.6,6.45413965]
[1761022841040,0.4475,3863.7,3863.6,3.09513965]
[1761022841274,0.4475,3863.7,3862.4,0.05]
[1761022841473,0.4475,3863.7,3863.6,2.58825965]
[1761022841648,0.4475,3863.7,3863.6,4.65825965]
[1761022841849,0.4475,3863.7,3863.6,2.07]
[1761022842175,0.4475,3863.7,3863.6,3.358]
[1761022842176,2.1755,3863.7,3863.6,3.358]
[1761022842339,0.4475,3863.7,3863.6,3.358]
[1761022842773,0.4475,3863.7,3863.0,2.58866006]
[1761022842975,0.4475,3863.7,3863.2,2.58852225]
[1761022843562,20.96921476,3863.7,3861.3,0.1004]
[1761022843838,20.96921476,3863.7,3861.3,1.75]
[1761022843839,1.728,3862.9,3861.3,1.75]
[1761022844043,1.728,3862.9,3861.3,0.43902154]
[1761022844284,0.6807,3862.8,3861.2,2.58986843]
[1761022844485,0.6807,3862.8,3861.5,2.58966722]
[1761022844669,0.4465,3862.7,3862.1,2.58926162]
[1761022844842,0.4465,3862.7,3862.2,3.358]
[1761022845176,0.4465,3862.7,3862.2,5.94717726]
[1761022845751,0.4465,3862.7,3860.7,0.1004]
[1761022845983,1.728,3862.5,3861.8,2.58940733]
[1761022846280,1.728,3862.5,3861.9,3.358]
[1761022846588,0.4465,3862.4,3862.1,2.58926228]
[1761022846791,0.4465,3862.4,3862.2,0.02589197]
[1761022846978,0.2342,3862.0,3861.9,2.5893724]
[1761022847154,0.2342,3862.0,3861.9,5.9473724]
[1761022847554,0.4465,3862.3,3862.2,2.58919786]
[1761022847902,0.2342,3862.8,3861.9,3.358]
[1761022847903,0.4465,3862.7,3861.9,3.358]
[1761022848106,0.4465,3862.6,3861.9,3.358]
[1761022848252,0.4465,3862.6,3862.5,2.58899676]
[1761022848457,0.4465,3862.6,3862.5,3.358]
[1761022849778,0.4465,3862.6,3862.5,5.94699676]
[1761022850700,0.4465,3862.6,3862.5,3.358]
[1761022851131,0.4465,3862.6,3862.1,0.1288]
[1761022851132,0.4465,3862.6,3862.4,3.358]
[1761022851483,0.4465,3862.6,3862.3,2.58909412]
[1761022851687,0.4465,3862.6,3862.4,5.94705142]
[1761022851997,0.4465,3862.6,3862.5,2.58899676]
[1761022853302,0.2342,3862.8,3862.6,2.58892973]
[1761022853496,0.2342,3862.8,3862.7,2.58886271]
[1761022854311,0.1288,3863.2,3863.1,2.58859465]
[1761022854501,0.5753,3863.2,3863.1,5.94559465]
[1761022854698,0.4465,3863.2,3863.1,5.94559465]
[1761022854897,0.4465,3863.2,3863.1,3.357]
[1761022855121,0.4465,3863.2,3863.1,5.94559465]
[1761022855822,0.4465,3863.2,3863.1,3.357]
[1761022856212,0.4465,3863.2,3862.8,2.58873216]
[1761022856405,0.4465,3863.2,3863.1,3.357]
[1761022856706,0.4465,3863.2,3863.1,5.94559465]
[1761022857017,0.4465,3863.2,3863.1,2.58859465]
[1761022857223,0.4465,3863.2,3863.1,5.94559465]
[1761022858733,0.4465,3863.2,3863.1,3.357]
[1761022859440,0.4465,3863.2,3863.1,5.94559465]
[1761022860133,0.4465,3863.2,3863.1,3.357]
[1761022860303,0.4465,3863.2,3863.1,5.94559465]
[1761022860943,0.4465,3863.2,3863.1,3.357]
[1761022861900,0.4465,3863.2,3863.1,5.94559465]
[1761022862544,0.465,3863.7,3863.6,2.58825965]
[1761022862842,0.001,3863.7,3863.6,5.94425965]
[1761022863947,0.001,3863.7,3863.6,3.356]
[1761022864240,0.465,3863.7,3863.6,5.94425965]
[1761022864460,0.001,3863.7,3863.6,2.58825965]
[1761022864612,0.001,3863.7,3863.6,5.94425965]
[1761022864807,0.465,3863.7,3863.5,0.1288]
[1761022865140,0.1288,3863.6,3863.5,3.356]
[1761022865534,0.5928,3863.6,3863.5,3.356]
[1761022866267,0.5928,3863.6,3863.5,5.94432664]
[1761022866447,0.001,3863.7,3863.6,2.58825965]
[1761022867062,0.001,3863.7,3863.6,2.71705965]
[1761022867225,0.465,3863.7,3863.6,6.07305965]
[1761022867430,0.465,3863.7,3863.6,0.1288]
[1761022867765,0.465,3863.7,3863.6,6.07305965]
[1761022868064,0.465,3863.7,3862.2,0.05]
[1761022868261,0.465,3863.7,3862.7,0.1288]
[1761022868262,0.1288,3863.3,3862.7,0.1288]
[1761022868453,0.1288,3863.3,3863.0,2.5886564]
[1761022868654,0.1288,3863.3,3863.1,2.58855859]
[1761022868655,0.5928,3863.3,3863.1,2.58855859]
[1761022868849,0.5928,3863.3,3863.2,3.355]
[1761022869053,0.1288,3863.3,3863.2,3.355]
[1761022869252,0.001,3863.6,3863.2,3.355]
[1761022869253,0.001,3863.6,3863.3,2.58845353]
[1761022869502,0.1298,3863.6,3863.2,3.355]
[1761022869634,0.465,3863.6,3863.5,2.58832664]
[1761022869835,0.001,3863.6,3863.5,5.94332664]
[1761022870027,20.99940908,3863.6,3863.2,0.1288]
[1761022870233,0.1288,3863.3,3863.2,1.935]
[1761022870429,0.5928,3863.3,3863.2,1.935]
[1761022871065,0.5928,3863.3,3863.0,2.58861492]
[1761022871274,0.1288,3863.3,3863.2,3.355]
[1761022871957,1.8568,3863.3,3862.7,0.1288]
[1761022872155,0.3442,3862.8,3862.6,0.126]
[1761022872541,0.464,3862.7,3862.6,0.126]
[1761022872867,0.464,3862.7,3862.5,2.59094414]
[1761022873067,0.464,3862.7,3862.6,3.355]
[1761022874684,0.464,3862.7,3862.5,2.59097345]
[1761022874860,0.464,3862.7,3862.6,3.355]
[1761022875060,0.464,3862.7,3862.6,5.94392973]
[1761022875388,0.464,3862.7,3862.6,3.355]
[1761022875593,0.464,3862.7,3862.6,5.94392973]
[1761022875757,0.464,3862.7,3862.5,0.002]
[1761022875955,22.72640908,3862.7,3862.6,3.355]
[1761022876182,1.728,3862.6,3862.5,0.002]
[1761022876363,0.4564,3862.6,3862.5,3.357]
[1761022879201,0.4564,3862.6,3862.5,3.356]
[1761022879502,0.4564,3862.6,3862.5,0.002]
[1761022879792,0.4564,3862.6,3862.5,3.356]
[1761022880089,0.4564,3862.6,3862.5,5.94499676]
[1761022880389,0.81207341,3863.2,3862.7,2.58886271]
[1761022880592,0.4060292,3863.2,3862.8,2.58874478]
[1761022880804,0.4564,3863.1,3862.9,3.354]
[1761022881008,0.4564,3863.1,3862.7,2.58884285]
[1761022881009,0.4564,3863.1,3863.0,3.354]
[1761022881212,0.4564,3863.1,3863.0,5.94266166]
[1761022881395,0.4564,3863.1,3863.0,3.354]
[1761022881573,0.4564,3863.1,3862.8,2.58874556]
[1761022881777,0.2353,3862.9,3862.8,2.58874556]
[1761022881979,0.2353,3862.9,3862.8,5.94274556]
[1761022882200,0.6917,3862.9,3862.8,2.58874556]
[1761022882407,0.4060292,3863.2,3863.0,2.58863271]
[1761022882710,0.4060292,3863.2,3863.1,3.354]
[1761022882910,0.001,3863.7,3863.1,3.354]
[1761022883083,0.4564,3863.5,3863.2,2.58848507]
[1761022883278,0.4564,3863.5,3863.1,3.354]
[1761022883480,19.36885483,3863.5,3863.2,3.354]
[1761022883881,0.4564,3863.4,3863.2,3.354]
[1761022884216,0.4564,3863.5,3863.3,2.58846064]
[1761022884719,0.4564,3863.5,3863.2,5.9425176]
[1761022884885,0.4564,3863.5,3863.2,3.354]
[1761022885286,0.4564,3863.5,3863.3,3.354]
[1761022885605,0.4564,3863.5,3863.4,2.58839364]
[1761022886615,0.1298,3863.6,3863.3,3.354]
[1761022886820,0.4564,3863.5,3863.4,2.58834168]
[1761022887115,0.4564,3863.5,3863.4,3.354]
[1761022888521,0.1298,3863.6,3863.4,5.94238397]
[1761022888686,0.4564,3863.5,3863.4,3.354]
[1761022890399,0.4564,3863.5,3863.4,5.94239364]
[1761022890597,0.1298,3863.6,3863.4,5.94239364]
[1761022890919,0.4306,3863.5,3863.4,2.58839364]
[1761022891106,0.4306,3863.5,3863.4,5.94139364]
[1761022891312,0.1298,3863.6,3863.5,2.58832664]
[1761022892900,0.5604,3863.6,3863.4,3.353]
[1761022893103,0.1298,3863.6,3863.5,5.94132664]
[1761022894393,0.001,3863.6,3863.5,5.94132664]
[1761022894614,0.4316,3863.6,3863.1,0.002]
[1761022894818,0.5604,3863.6,3863.2,3.353]
[1761022894993,0.5604,3863.6,3863.4,2.58835004]
[1761022895197,0.1298,3863.6,3863.5,3.352]
[1761022895393,0.1298,3863.6,3863.5,5.94032664]
[1761022895594,0.1298,3863.6,3863.5,3.352]
[1761022895870,0.5604,3863.6,3863.5,3.352]
[1761022896017,0.5604,3863.6,3863.4,2.58837545]
[1761022896363,0.1298,3863.6,3863.5,5.94032664]
[1761022897534,0.5604,3863.6,3863.5,3.352]
[1761022898031,0.5604,3863.6,3863.1,0.002]
[1761022898237,0.1298,3863.6,3863.5,2.58832664]
[1761022898430,0.1298,3863.6,3863.5,5.94032664]
[1761022898864,0.5604,3863.6,3863.4,2.58837375]
[1761022899167,0.5604,3863.6,3863.5,5.94032664]
[1761022900296,0.001,3863.6,3863.5,5.94032664]
[1761022900593,0.001,3863.6,3863.5,6.80608493]
[1761022901047,0.001,3863.6,3863.5,5.94032664]
[1761022903397,0.4316,3863.6,3863.5,5.93932664]
[1761022903860,8.04135754,3863.6,3863.5,3.351]
[1761022904287,8.04135754,3863.6,3863.5,5.93932664]
[1761022904491,8.04135754,3863.6,3863.5,3.351]
[1761022904492,7.61075754,3863.6,3863.5,3.351]
[1761022904689,8.04135754,3863.6,3863.5,3.351]
[1761022904850,8.04135754,3863.6,3863.5,5.93932664]
[1761022905052,0.4316,3863.6,3863.5,2.58832664]
[1761022905357,0.001,3863.6,3863.5,5.93932664]
[1761022906949,0.001,3863.6,3863.5,2.58832664]
[1761022907150,0.001,3863.6,3863.5,5.93832664]
[1761022907780,0.001,3863.6,3863.5,2.58832664]
[1761022907981,0.001,3863.6,3863.5,5.93832664]
[1761022908301,0.001,3863.6,3863.5,6.80408514]
[1761022908603,0.001,3863.6,3863.5,6.90448514]
[1761022908781,0.001,3863.6,3863.5,6.93288514]